fUSD/lending_fUSD_20260522
["ID","MTS","AMOUNT","RATE_DAILY","PERIOD"]
[422779180,1779381044000,-64668.94905168,0.0003013,7]
[422779179,1779381044000,-8499.80538869,0.0003013,30]
[422779182,1779381044000,-1000.0,0.00030137,30]
[422779187,1779381044000,-200.0,0.00030137,2]
[422779185,1779381044000,-317.2726161,0.00030137,7]
[422779174,1779381044000,-451.0,0.00030129,120]
[422779213,1779381044000,-330.92466334,0.00030163,7]
[422779234,1779381044000,-300.0,0.00030635,30]
[422779215,1779381044000,-15787.50296862,0.000302,2]
[422779246,1779381044000,-288.0,0.00030867,30]
[422779245,1779381044000,-258.0,0.00030867,30]
[422779249,1779381044000,-158.0,0.0003087,30]
[422779251,1779381044000,-228.20744649,0.0003089,7]
[422779250,1779381044000,-318.0,0.0003087,30]
[422779253,1779381044000,-211.16871203,0.0003089,7]
[422779252,1779381044000,-220.75069305,0.0003089,7]
[422779254,1779381044000,-238.50086411,0.0003089,7]
[422779255,1779381044000,-475.90892415,0.0003089,7]
[422779260,1779381044000,-242.37741389,0.0003089,7]
[422779256,1779381044000,-176.93539598,0.0003089,7]
[422779257,1779381044000,-242.81040803,0.0003089,7]
[422779248,1779381044000,-155.0,0.0003087,30]
[422779258,1779381044000,-225.56271226,0.0003089,7]
[422779261,1779381044000,-290.46518987,0.0003089,7]
[422779262,1779381044000,-489.0,0.000309,120]
[422779263,1779381044000,-5000.0,0.000309,11]
[422779265,1779381044000,-506.70479317,0.00030918,7]
[422779266,1779381044000,-524.02191661,0.00030918,7]
[422779271,1779381044000,-483.79138134,0.00030918,7]
[422779272,1779381044000,-604.3539198,0.00030918,7]
[422779270,1779381044000,-497.57056414,0.00030918,7]
[422779267,1779381044000,-583.49898369,0.00030918,7]
[422779269,1779381044000,-579.37576508,0.00030918,7]
[422779268,1779381044000,-489.12116561,0.00030918,7]
[422779216,1779381044000,-2300.08,0.000302,7]
[422779259,1779381044000,-247.73486918,0.0003089,7]
[422779243,1779381044000,-151.0,0.00030867,30]
[422779264,1779381044000,-535.76301326,0.00030918,7]
[422779247,1779381044000,-155.0,0.00030867,30]
[422779244,1779381044000,-158.0,0.00030867,30]
[422779217,1779381044000,-2156.77,0.000302,7]
[422779219,1779381044000,-300.0,0.000302,10]
[422779223,1779381044000,-327.33,0.00030539,7]
[422779220,1779381044000,-150.0,0.00030205,2]
[422779221,1779381044000,-1242.0,0.00030239,2]
[422779224,1779381044000,-5822.09740778,0.00030581,49]
[422779225,1779381044000,-750.0,0.00030581,60]
[422779218,1779381044000,-535.17,0.000302,14]
[422779226,1779381044000,-750.0,0.00030581,60]
[422779227,1779381044000,-741.0,0.00030581,60]
[422779228,1779381044000,-200.0,0.00030618,2]
[422779233,1779381044000,-300.0,0.00030635,30]
[422779222,1779381044000,-156.0,0.00030477,3]
[422779236,1779381044000,-187.0,0.00030635,30]
[422779242,1779381044000,-385.0,0.00030867,30]
[422779232,1779381044000,-300.0,0.00030635,30]
[422779241,1779381044000,-155.0,0.00030867,30]
[422779240,1779381044000,-154.0,0.00030867,30]
[422779237,1779381044000,-746.0,0.00030697,7]
[422779239,1779381044000,-1635.4975229,0.0003084,2]
[422779229,1779381044000,-150.0,0.00030635,30]
[422779273,1779381044000,-548.8344279,0.00030918,7]
[422779230,1779381044000,-252.0,0.00030635,30]
[422779231,1779381044000,-300.0,0.00030635,30]
[422779235,1779381044000,-300.0,0.00030635,30]
[422779238,1779381044000,-152.0,0.00030752,5]
[422779296,1779381045000,-172.97224577,0.00030918,7]
[422779304,1779381045000,-439.31949483,0.00030918,7]
[422779297,1779381045000,-462.00136576,0.00030918,7]
[422779298,1779381045000,-524.50725506,0.00030918,7]
[422779299,1779381045000,-493.56738802,0.00030918,7]
[422779303,1779381045000,-504.49106967,0.00030918,7]
[422779302,1779381045000,-224.66308268,0.00030918,7]
[422779301,1779381045000,-235.62427027,0.00030918,7]
[422779308,1779381045000,-232.48997453,0.00030918,7]
[422779306,1779381045000,-291.79879659,0.00030918,7]
[422779305,1779381045000,-545.05018793,0.00030918,7]
[422779307,1779381045000,-434.14086849,0.00030918,7]
[422779309,1779381045000,-299.18456624,0.00030918,7]
[422779311,1779381045000,-712.87397097,0.00030918,7]
[422779313,1779381045000,-164.59215688,0.00030918,7]
[422779293,1779381045000,-480.09811469,0.00030918,5]
[422779300,1779381045000,-1266.14552773,0.00030918,7]
[422779291,1779381045000,-244.05776306,0.00030918,7]
[422779282,1779381045000,-491.62002819,0.00030918,7]
[422779292,1779381045000,-496.34064206,0.00030918,7]
[422779312,1779381045000,-249.96438615,0.00030918,7]
[422779274,1779381045000,-562.55310284,0.00030918,7]
[422779275,1779381045000,-604.85654318,0.00030918,7]
[422779281,1779381045000,-532.71198001,0.00030918,7]
[422779277,1779381045000,-650.68282598,0.00030918,7]
[422779279,1779381045000,-512.82889134,0.00030918,7]
[422779278,1779381045000,-617.71436666,0.00030918,7]
[422779283,1779381045000,-759.99483745,0.00030918,7]
[422779295,1779381045000,-442.37075014,0.00030918,7]
[422779280,1779381045000,-516.21016098,0.00030918,7]
[422779284,1779381045000,-507.34586658,0.00030918,7]
[422779285,1779381045000,-357.5200971,0.00030918,7]
[422779287,1779381045000,-464.45924701,0.00030918,7]
[422779288,1779381045000,-347.05671833,0.00030918,7]
[422779286,1779381045000,-431.27848299,0.00030918,7]
[422779289,1779381045000,-423.35561533,0.00030918,5]
[422779290,1779381045000,-597.31610648,0.00030918,2]
[422779294,1779381045000,-1026.51760871,0.00030918,7]
[422779276,1779381045000,-310.41866988,0.00030918,2]
[422779314,1779381045000,-409.26800191,0.00030918,7]
[422779318,1779381045000,-475.92145361,0.00030918,7]
[422779310,1779381045000,-1257.59340439,0.00030918,7]
[422779337,1779381045000,-212.10025901,0.00030919,7]
[422779341,1779381045000,-237.9501784,0.00030995,7]
[422779339,1779381045000,-524.94950899,0.00030919,7]
[422779338,1779381045000,-153.05390174,0.00030919,7]
[422779342,1779381045000,-500.0,0.00030999,120]
[422779344,1779381045000,-74574.4477115,0.00031,2]
[422779343,1779381045000,-500.0,0.00030999,120]
[422779345,1779381045000,-74767.61754481,0.00031,120]
[422779346,1779381045000,-147710.27083522,0.00031,120]
[422779348,1779381045000,-776.0,0.00027556,10]
[422779351,1779381045000,-1088.97006113,0.00031,120]
[422779350,1779381045000,-50000.0,0.00031,120]
[422779349,1779381045000,-641.0,0.00031,120]
[422779353,1779381045000,-207.78141666,0.00031,5]
[422779352,1779381045000,-559.75910448,0.00031,120]
[422779354,1779381045000,-372.73608226,0.0003087,30]
[422779315,1779381045000,-637.11733984,0.00030918,7]
[422779340,1779381045000,-615.83075476,0.0003099,2]
[422779336,1779381045000,-538.86376109,0.00030919,7]
[422779347,1779381045000,-2043.0,0.00027171,7]
[422779335,1779381045000,-467.56908322,0.00030919,7]
[422779317,1779381045000,-418.16807918,0.00030918,7]
[422779334,1779381045000,-473.43341153,0.00030919,7]
[422779316,1779381045000,-608.84500464,0.00030918,7]
[422779319,1779381045000,-812.65820064,0.00030918,7]
[422779320,1779381045000,-227.9197111,0.00030918,7]
[422779330,1779381045000,-225.09222319,0.00030919,7]
[422779331,1779381045000,-616.98738732,0.00030919,7]
[422779322,1779381045000,-214.5313903,0.00030918,7]
[422779321,1779381045000,-352.12235346,0.00030918,2]
[422779324,1779381045000,-507.67576933,0.00030918,7]
[422779325,1779381045000,-420.28004283,0.00030919,7]
[422779328,1779381045000,-499.40150075,0.00030919,7]
[422779329,1779381045000,-498.04207808,0.00030919,7]
[422779327,1779381045000,-428.56760286,0.00030919,7]
[422779326,1779381045000,-150.47689585,0.00030919,7]
[422779333,1779381045000,-355.70678336,0.00030919,7]
[422779323,1779381045000,-609.48781715,0.00030918,7]
[422779332,1779381045000,-231.401874,0.00030919,7]
[422779384,1779381046000,-1608.580739,0.00031,7]
[422779389,1779381046000,-1170.736035,0.00031,7]
[422779385,1779381046000,-1608.580739,0.00031,7]
[422779391,1779381046000,-887.240915,0.00031,7]
[422779386,1779381046000,-2500.0,0.00031,32]
[422779383,1779381046000,-1608.580739,0.00031,7]
[422779388,1779381046000,-1170.736035,0.00031,7]
[422779392,1779381046000,-887.240915,0.00031,7]
[422779387,1779381046000,-1170.736035,0.00031,7]
[422779390,1779381046000,-1170.736035,0.00031,7]
[422779393,1779381046000,-887.240915,0.00031,7]
[422779403,1779381046000,-1035.26,0.00031011,7]
[422779398,1779381046000,-151.0,0.00031,7]
[422779396,1779381046000,-3613.84859,0.00031,7]
[422779397,1779381046000,-3613.84859,0.00031,7]
[422779401,1779381046000,-151.0,0.00031,7]
[422779395,1779381046000,-3613.84859,0.00031,7]
[422779404,1779381046000,-5084.16,0.00031049,7]
[422779400,1779381046000,-151.0,0.00031,7]
[422779399,1779381046000,-3613.84859,0.00031,7]
[422779402,1779381046000,-1169.62,0.00031011,7]
[422779406,1779381046000,-612.38631267,0.0003106,7]
[422779382,1779381046000,-1608.580739,0.00031,7]
[422779394,1779381046000,-887.240915,0.00031,7]
[422779381,1779381046000,-2022.891238,0.00031,7]
[422779366,1779381046000,-349.93418871,0.00031,5]
[422779380,1779381046000,-2022.891238,0.00031,7]
[422779357,1779381046000,-2043.0,0.00027628,7]
[422779355,1779381046000,-2043.0,0.000274,2]
[422779358,1779381046000,-2043.0,0.00027857,30]
[422779356,1779381046000,-388.0,0.00027556,10]
[422779359,1779381046000,-1162.2192078,0.00028085,2]
[422779360,1779381046000,-21097.48,0.00027397,10]
[422779361,1779381046000,-880.7807922,0.00028085,2]
[422779362,1779381046000,-2043.0,0.00028314,7]
[422779365,1779381046000,-14088.72655122,0.00031,5]
[422779363,1779381046000,-2043.0,0.00028542,30]
[422779405,1779381046000,-488.27012582,0.0003106,7]
[422779378,1779381046000,-2022.891238,0.00031,7]
[422779364,1779381046000,-377.26391774,0.0003087,30]
[422779368,1779381046000,-2156.77,0.00031,7]
[422779369,1779381046000,-1650.0,0.00031,120]
[422779370,1779381046000,-1650.0,0.00031,120]
[422779374,1779381046000,-3580.76086423,0.00031,120]
[422779373,1779381046000,-201.0,0.00031,120]
[422779371,1779381046000,-1508.0,0.00031,120]
[422779372,1779381046000,-150.0,0.00031,120]
[422779379,1779381046000,-2022.891238,0.00031,7]
[422779377,1779381046000,-151.0,0.00031,7]
[422779375,1779381046000,-151.0,0.00031,7]
[422779376,1779381046000,-229.598305,0.00031,7]
[422779367,1779381046000,-2300.08,0.00031,7]
[422779408,1779381046000,-524.57367996,0.0003106,7]
[422779471,1779381046000,-168.59857672,0.00031486,7]
[422779409,1779381046000,-521.3937652,0.0003106,7]
[422779461,1779381046000,-422.33742406,0.00031486,7]
[422779462,1779381046000,-165.85330297,0.00031486,7]
[422779465,1779381046000,-477.00172821,0.00031486,7]
[422779477,1779381046000,-485.62081605,0.00031486,7]
[422779479,1779381046000,-451.12542452,0.00031486,7]
[422779467,1779381046000,-634.5452322,0.00031486,7]
[422779469,1779381046000,-339.94810404,0.00031486,7]
[422779486,1779381046000,-172.68915424,0.00031486,7]
[422779473,1779381046000,-161.53175312,0.00031486,7]
[422779484,1779381046000,-495.46973837,0.00031486,7]
[422779482,1779381046000,-164.6019955,0.00031486,7]
[422779488,1779381046000,-484.75482778,0.00031486,7]
[422779490,1779381046000,-580.93037974,0.00031486,7]
[422779492,1779381046000,-162.95061067,0.00031486,7]
[422779503,1779381046000,-698.69588881,0.00031514,7]
[422779509,1779381046000,-777.99864492,0.00031514,7]
[422779505,1779381046000,-675.60639089,0.00031514,7]
[422779507,1779381046000,-652.16155415,0.00031514,7]
[422779497,1779381046000,-150.0,0.000315,2]
[422779495,1779381046000,-200.59803699,0.000315,2]
[422779501,1779381046000,-714.35068434,0.00031514,7]
[422779499,1779381046000,-1000.0,0.000315,7]
[422779407,1779381046000,-504.57468637,0.0003106,7]
[422779459,1779381046000,-166.04188862,0.00031486,7]
[422779454,1779381046000,-212.6014107,0.00031486,7]
[422779475,1779381046000,-164.77594217,0.00031486,7]
[422779448,1779381046000,-2000.0,0.00031469,7]
[422779451,1779381046000,-353.87079196,0.00031478,7]
[422779415,1779381046000,-468.02077232,0.0003106,7]
[422779413,1779381046000,-629.58885958,0.0003106,7]
[422779410,1779381046000,-641.16256607,0.0003106,7]
[422779411,1779381046000,-482.00611017,0.0003106,7]
[422779416,1779381046000,-446.62076579,0.0003106,2]
[422779417,1779381046000,-588.20396007,0.0003106,7]
[422779418,1779381046000,-468.00264787,0.0003106,7]
[422779420,1779381046000,-471.89806629,0.0003106,7]
[422779423,1779381046000,-496.38699502,0.0003106,7]
[422779422,1779381046000,-513.66272174,0.0003106,7]
[422779429,1779381046000,-3569.0,0.00031112,2]
[422779414,1779381046000,-514.57359376,0.0003106,7]
[422779457,1779381046000,-456.41489299,0.00031486,7]
[422779427,1779381046000,-200.0,0.00031096,2]
[422779431,1779381046000,-150.0,0.00031133,30]
[422779424,1779381046000,-150.0,0.00031081,2]
[422779434,1779381046000,-229.557499,0.000312,7]
[422779438,1779381046000,-382.938461,0.000312,7]
[422779440,1779381046000,-746.0,0.00031245,7]
[422779442,1779381046000,-881.44910674,0.00031275,21]
[422779452,1779381046000,-342.03021273,0.00031486,7]
[422779444,1779381046000,-156.0,0.00031371,3]
[422779446,1779381046000,-200.0,0.00031412,2]
[422779436,1779381046000,-434.2025,0.000312,7]
[422779578,1779381047000,-1688.19403697,0.00031514,7]
[422779572,1779381047000,-1368.69014494,0.00031514,7]
[422779575,1779381047000,-699.34300674,0.00031514,7]
[422779574,1779381047000,-345.94449155,0.00031514,7]
[422779576,1779381047000,-616.00182101,0.00031514,7]
[422779568,1779381047000,-661.78752275,0.00031514,7]
[422779570,1779381047000,-161.19664367,0.00031514,7]
[422779573,1779381047000,-663.55612522,0.00031514,7]
[422779571,1779381047000,-640.13081959,0.00031514,5]
[422779580,1779381047000,-449.32616537,0.00031514,7]
[422779577,1779381047000,-658.08985069,0.00031514,7]
[422779579,1779381047000,-471.24854054,0.00031514,7]
[422779583,1779381047000,-326.49658152,0.00031514,7]
[422779582,1779381047000,-170.43814796,0.00031514,7]
[422779588,1779381047000,-464.97994907,0.00031514,7]
[422779584,1779381047000,-583.59759319,0.00031514,7]
[422779586,1779381047000,-726.73358391,0.00031514,7]
[422779585,1779381047000,-658.97924224,0.00031514,7]
[422779587,1779381047000,-651.21130274,0.00031514,7]
[422779589,1779381047000,-598.36913249,0.00031514,7]
[422779590,1779381047000,-950.49862796,0.00031514,7]
[422779591,1779381047000,-1676.79120586,0.00031514,7]
[422779594,1779381047000,-613.90200286,0.00031514,7]
[422779595,1779381047000,-849.48978645,0.00031514,7]
[422779581,1779381047000,-672.65475956,0.00031514,7]
[422779565,1779381047000,-488.11552612,0.00031514,7]
[422779511,1779381047000,-663.42741886,0.00031514,7]
[422779561,1779381047000,-796.4214753,0.00031514,2]
[422779593,1779381047000,-329.18431375,0.00031514,7]
[422779512,1779381047000,-772.50102011,0.00031514,7]
[422779514,1779381047000,-725.68707202,0.00031514,7]
[422779516,1779381047000,-805.80522641,0.00031514,7]
[422779527,1779381047000,-867.57710131,0.00031514,7]
[422779529,1779381047000,-823.61915555,0.00031514,7]
[422779531,1779381047000,-683.77185512,0.00031514,7]
[422779518,1779381047000,-731.7792372,0.00031514,7]
[422779520,1779381047000,-750.07080378,0.00031514,7]
[422779522,1779381047000,-806.47539091,0.00031514,7]
[422779524,1779381047000,-465.62800482,0.00031514,2]
[422779533,1779381047000,-688.28021464,0.00031514,7]
[422779535,1779381047000,-710.28264002,0.00031514,7]
[422779537,1779381047000,-1013.32644993,0.00031514,7]
[422779543,1779381047000,-536.28014565,0.00031514,7]
[422779541,1779381047000,-676.46115544,0.00031514,7]
[422779551,1779381047000,-383.69273055,0.00031514,7]
[422779539,1779381047000,-655.49337092,0.00031514,7]
[422779545,1779381047000,-164.76235063,0.00031514,2]
[422779557,1779381047000,-520.58507749,0.00031514,7]
[422779559,1779381047000,-635.03342299,0.00031514,5]
[422779553,1779381047000,-168.51548703,0.00031514,7]
[422779555,1779381047000,-164.06998812,0.00031514,7]
[422779549,1779381047000,-619.27899601,0.00031514,7]
[422779547,1779381047000,-646.91772449,0.00031514,7]
[422779563,1779381047000,-167.57117092,0.00031514,7]
[422779592,1779381047000,-499.92877231,0.00031514,7]
[422779612,1779381047000,-812.65042287,0.00031514,7]
[422779599,1779381047000,-634.56193815,0.00031514,7]
[422779637,1779381047000,-160.08838244,0.00031515,7]
[422779626,1779381047000,-664.0561041,0.00031515,7]
[422779628,1779381047000,-160.09089579,0.00031515,7]
[422779631,1779381047000,-160.08838224,0.00031515,7]
[422779629,1779381047000,-160.09119609,0.00031515,7]
[422779633,1779381047000,-533.56017504,0.00031515,7]
[422779636,1779381047000,-631.24454871,0.00031515,7]
[422779630,1779381047000,-318.37200423,0.00031515,7]
[422779634,1779381047000,-462.80374799,0.00031515,7]
[422779596,1779381047000,-811.79333951,0.00031514,7]
[422779632,1779381047000,-822.64984977,0.00031515,7]
[422779638,1779381047000,-348.41252588,0.00031515,7]
[422779640,1779381047000,-383.16709809,0.00031515,7]
[422779639,1779381047000,-160.09132104,0.00031515,7]
[422779642,1779381047000,-160.08838245,0.00031515,7]
[422779641,1779381047000,-160.15404026,0.00031515,7]
[422779643,1779381047000,-160.33950255,0.00031515,7]
[422779648,1779381047000,-160.08838224,0.00031515,7]
[422779645,1779381047000,-160.08838244,0.00031515,7]
[422779649,1779381047000,-424.20051802,0.00031515,7]
[422779647,1779381047000,-160.08838244,0.00031515,7]
[422779644,1779381047000,-623.42544429,0.00031515,7]
[422779646,1779381047000,-718.48501479,0.00031515,7]
[422779650,1779381047000,-160.08838224,0.00031515,7]
[422779651,1779381047000,-340.15404026,0.00031515,7]
[422779627,1779381047000,-450.18444639,0.00031515,7]
[422779625,1779381047000,-160.09118418,0.00031515,7]
[422779635,1779381047000,-170.09390632,0.00031515,7]
[422779621,1779381047000,-160.08838224,0.00031515,7]
[422779598,1779381047000,-627.25211877,0.00031514,7]
[422779620,1779381047000,-160.15402823,0.00031515,7]
[422779597,1779381047000,-167.14924086,0.00031514,7]
[422779600,1779381047000,-410.64126181,0.00031514,7]
[422779601,1779381047000,-1083.54426751,0.00031514,7]
[422779603,1779381047000,-168.48832466,0.00031514,7]
[422779604,1779381047000,-167.90818866,0.00031514,7]
[422779602,1779381047000,-168.58165989,0.00031514,2]
[422779607,1779381047000,-165.20388811,0.00031514,7]
[422779606,1779381047000,-455.83942219,0.00031514,7]
[422779608,1779381047000,-528.18353019,0.00031514,2]
[422779609,1779381047000,-169.79069643,0.00031514,7]
[422779605,1779381047000,-212.3231054,0.00031514,7]
[422779622,1779381047000,-160.26909069,0.00031515,7]
[422779610,1779381047000,-429.0627806,0.00031514,7]
[422779613,1779381047000,-676.90102577,0.00031514,7]
[422779614,1779381047000,-160.08838224,0.00031514,7]
[422779615,1779381047000,-160.08838244,0.00031515,7]
[422779616,1779381047000,-160.0911959,0.00031515,7]
[422779618,1779381047000,-630.42006425,0.00031515,7]
[422779617,1779381047000,-160.15404026,0.00031515,7]
[422779619,1779381047000,-300.95379171,0.00031515,7]
[422779624,1779381047000,-665.86866766,0.00031515,7]
[422779611,1779381047000,-314.70692256,0.00031514,7]
[422779623,1779381047000,-642.85140429,0.00031515,7]
[422779666,1779381048000,-1398.55008994,0.00028771,2]
[422779668,1779381048000,-774.31587832,0.00031647,2]
[422779667,1779381048000,-15033.00058941,0.00031647,2]
[422779669,1779381048000,-1124.0615707,0.00031647,2]
[422779676,1779381048000,-288.85,0.0002758,7]
[422779671,1779381048000,-1455.48,0.0002755,2]
[422779672,1779381048000,-288.85,0.0002755,2]
[422779674,1779381048000,-1455.48,0.0002758,7]
[422779665,1779381048000,-644.44991006,0.00028771,2]
[422779670,1779381048000,-356.53840224,0.00022388,2]
[422779664,1779381048000,-544.0,0.00027556,10]
[422779653,1779381048000,-306.10780349,0.00031515,7]
[422779662,1779381048000,-1026.9702223,0.00031647,2]
[422779663,1779381048000,-29351.35293532,0.00031647,2]
[422779661,1779381048000,-150.0,0.00031631,30]
[422779660,1779381048000,-300.94012516,0.00031605,7]
[422779658,1779381048000,-2300.08,0.000316,7]
[422779655,1779381048000,-699.93267865,0.00031515,7]
[422779657,1779381048000,-163.67736678,0.00031592,7]
[422779656,1779381048000,-433.63042771,0.00031515,7]
[422779654,1779381048000,-160.15866886,0.00031515,7]
[422779652,1779381048000,-160.09119012,0.00031515,7]
[422779675,1779381048000,-621.81,0.0002758,7]
[422779659,1779381048000,-2156.77,0.000316,7]
[422779673,1779381048000,-621.81,0.0002755,2]
[422779696,1779381048000,-1455.48,0.00027824,2]
[422779679,1779381048000,-56.70699816,0.00027611,30]
[422779700,1779381048000,-5000.0,0.00029,2]
[422779702,1779381048000,-12964.0,0.00029,2]
[422779701,1779381048000,-18654.0,0.00029,2]
[422779703,1779381048000,-2230.10764903,0.00029,2]
[422779698,1779381048000,-1455.48,0.00027885,30]
[422779699,1779381048000,-1455.48,0.00027916,2]
[422779691,1779381048000,-288.85,0.00027702,30]
[422779689,1779381048000,-621.81,0.00027672,7]
[422779693,1779381048000,-1358.47364937,0.00027733,2]
[422779694,1779381048000,-1455.48,0.00027763,7]
[422779692,1779381048000,-97.00635063,0.00027733,2]
[422779697,1779381048000,-1455.48,0.00027855,7]
[422779686,1779381048000,-4802.03872013,0.00027663,2]
[422779690,1779381048000,-1455.48,0.00027702,30]
[422779680,1779381048000,-403.02320306,0.00027611,30]
[422779682,1779381048000,-1455.48,0.00027641,2]
[422779681,1779381048000,-218.78679694,0.00027611,30]
[422779677,1779381048000,-1455.48,0.00027611,30]
[422779683,1779381048000,-288.85,0.00027641,2]
[422779685,1779381048000,-324.32818852,0.00027663,2]
[422779688,1779381048000,-288.85,0.00027672,7]
[422779695,1779381048000,-1455.48,0.00027794,30]
[422779684,1779381048000,-621.81,0.00027641,2]
[422779687,1779381048000,-1455.48,0.00027672,7]
[422779678,1779381048000,-232.14300184,0.00027611,30]
[422779709,1779381049000,-298.50767739,0.00027702,30]
[422779705,1779381049000,-351.714966,0.0002,2]
[422779704,1779381049000,-9354.85122343,0.00029,2]
[422779706,1779381049000,-398.285034,0.0002,2]
[422779713,1779381049000,-1455.48,0.00027946,7]
[422779712,1779381049000,-288.85,0.00027763,7]
[422779715,1779381049000,-2563.31743499,0.00029,2]
[422779711,1779381049000,-621.81,0.00027733,2]
[422779707,1779381049000,-92.84110371,0.00029,2]
[422779710,1779381049000,-288.85,0.00027733,2]
[422779714,1779381049000,-385.20002383,0.00029,2]
[422779716,1779381049000,-987.18575986,0.00027977,30]
[422779708,1779381049000,-323.30232261,0.00027702,30]
[422779719,1779381105000,2000000.0,0.00012,2]
[422779718,1779381105000,995387.37075229,0.00012,2]
[422779717,1779381105000,4873.66674212,0.00012,2]
[422779721,1779381144000,1000.0,0.00016011,120]
[422779720,1779381144000,1000.0,0.000166,120]
[422779722,1779381189000,266.047516,0.00026852,120]
[422779723,1779381280000,500.0,0.00028315,120]
[422779725,1779381344000,165.25,6.01e-05,2]
[422779726,1779381672000,500.0,0.00027917,120]
[422779727,1779381861000,-166.51,8.775e-05,2]
[422779728,1779381861000,-642.59283263,9.652e-05,2]
[422779731,1779381861000,-459.79030829,0.00011048,2]
[422779730,1779381861000,-500.0,0.00011013,2]
[422779735,1779381861000,-187.4,0.00011346,2]
[422779732,1779381861000,-166.29,0.00011148,2]
[422779734,1779381861000,-582.34,0.00011338,2]
[422779733,1779381861000,-159.19,0.00011305,2]
[422779729,1779381861000,-215.89,0.00010919,2]
[422779736,1779381861000,-1200.0,0.00011399,2]
[422779739,1779381861000,-800.0,0.000114,4]
[422779738,1779381861000,-300.0,0.000114,4]
[422779741,1779381861000,-300.0,0.000114,4]
[422779740,1779381861000,-300.0,0.000114,4]
[422779742,1779381861000,-300.0,0.00011428,2]
[422779743,1779381861000,-1909.93,0.00011429,2]
[422779744,1779381861000,-600.0,0.000115,4]
[422779737,1779381861000,-300.0,0.00011399,2]
[422779756,1779381862000,-1200.0,0.000117,4]
[422779755,1779381862000,-150.0,0.00011699,2]
[422779762,1779381862000,-4000.0,0.000118,4]
[422779757,1779381862000,-3200.0,0.000117,4]
[422779760,1779381862000,-165.25,0.00011785,2]
[422779759,1779381862000,-1500.0,0.000117,4]
[422779758,1779381862000,-1500.0,0.000117,4]
[422779753,1779381862000,-1100.0,0.000116,4]
[422779748,1779381862000,-200.0,0.00011503,2]
[422779754,1779381862000,-1100.0,0.000116,4]
[422779752,1779381862000,-2400.0,0.000116,4]
[422779749,1779381862000,-200.0,0.00011503,7]
[422779750,1779381862000,-163.42,0.00011503,2]
[422779747,1779381862000,-700.0,0.000115,4]
[422779746,1779381862000,-700.0,0.000115,4]
[422779745,1779381862000,-1600.0,0.000115,4]
[422779751,1779381862000,-900.0,0.000116,4]
[422779761,1779381862000,-1600.0,0.000118,4]
[422779773,1779381862000,-5472.97021317,0.000119,2]
[422779766,1779381862000,-800.0,0.000119,4]
[422779763,1779381862000,-1900.0,0.000118,4]
[422779779,1779381862000,-1223.29098339,0.00011999,3]
[422779781,1779381862000,-500.0,0.00011999,2]
[422779780,1779381862000,-156.0,0.00011999,2]
[422779775,1779381862000,-839.32754427,0.0001199,2]
[422779776,1779381862000,-839.32754427,0.0001199,2]
[422779777,1779381862000,-151.0,0.00011997,2]
[422779778,1779381862000,-1223.29098339,0.00011999,3]
[422779782,1779381862000,-500.0,0.00011999,2]
[422779771,1779381862000,-246.4472,0.000119,2]
[422779772,1779381862000,-3063.91539064,0.000119,2]
[422779770,1779381862000,-5514.84861165,0.000119,2]
[422779769,1779381862000,-290.09993327,0.000119,2]
[422779767,1779381862000,-300.0,0.000119,4]
[422779768,1779381862000,-300.0,0.000119,4]
[422779765,1779381862000,-300.0,0.000119,4]
[422779764,1779381862000,-1800.0,0.000118,4]
[422779774,1779381862000,-839.32754427,0.0001199,2]
[422779797,1779381863000,-500.0,0.00011999,2]
[422779796,1779381863000,-500.0,0.00011999,2]
[422779795,1779381863000,-500.0,0.00011999,2]
[422779793,1779381863000,-500.0,0.00011999,2]
[422779794,1779381863000,-500.0,0.00011999,2]